fUSD/lending_fUSD_20250916
["ID","MTS","AMOUNT","RATE_DAILY","PERIOD"]
[385837256,1758058283441,-779.04,0.00035129,6]
[385837257,1758058283451,-11748.77,0.00035129,6]
[385837258,1758058283461,-400.0,0.00035129,6]
[385837259,1758058283471,-846.77,0.00035129,6]
[385837260,1758058283482,-816.88,0.00035129,6]
[385837261,1758058283491,-417.79,0.00035129,6]
[385837262,1758058283501,-617.06,0.00035129,6]
[385837263,1758058283511,-956.08,0.00035129,6]
[385837264,1758058283521,-262.69,0.00035152,60]
[385837265,1758058283531,-317.51,0.00035153,60]
[385837266,1758058283541,-200.0,0.00035198,5]
[385837267,1758058283551,-200.0,0.00035198,5]
[385837268,1758058283561,-200.0,0.00035198,5]
[385837269,1758058283571,-600.0,0.00035217,7]
[385837270,1758058283581,-317.51,0.00035253,60]
[385837271,1758058283591,-600.0,0.00035296,7]
[385837272,1758058283601,-1000.0,0.00035297,7]
[385837273,1758058283611,-400.0,0.00035303,6]
[385837274,1758058283622,-1275.83,0.00035303,6]
[385837275,1758058283632,-408.95,0.00035303,6]
[385837276,1758058283642,-400.0,0.00035303,6]
[385837277,1758058283652,-467.76,0.00035303,6]
[385837278,1758058283662,-366.47475964,0.00035303,6]
[385837279,1758058283672,-833.72,0.00035303,6]
[385837280,1758058283682,-400.0,0.00035303,6]
[385837281,1758058283692,-529.33,0.00035303,6]
[385837282,1758058283701,-935.51,0.00035303,6]
[385837283,1758058283711,-500.0,0.00035328,2]
[385837284,1758058283721,-500.0,0.00035328,2]
[385837285,1758058283731,-150.0,0.00035338,120]
[385837286,1758058283935,-885.22,0.0003534,6]
[385837287,1758058283945,-882.33,0.0003534,6]
[385837288,1758058283954,-400.0,0.00035341,6]
[385837289,1758058283964,-1030.84,0.00035341,6]
[385837290,1758058283974,-400.0,0.00035341,6]
[385837291,1758058283983,-1390.25,0.00035341,6]
[385837292,1758058283993,-893.45,0.00035341,6]
[385837293,1758058284002,-846.78,0.00035341,6]
[385837294,1758058284012,-400.0,0.00035341,6]
[385837295,1758058284022,-463.17,0.00035341,6]
[385837296,1758058284031,-400.0,0.00035341,120]
[385837297,1758058284041,-400.0,0.00035341,6]
[385837298,1758058284051,-400.0,0.00035341,6]
[385837299,1758058284060,-400.0,0.00035341,6]
[385837300,1758058284070,-405.15,0.00035341,6]
[385837301,1758058284079,-544.6,0.00035341,6]
[385837302,1758058284089,-579.99,0.00035341,6]
[385837303,1758058284098,-400.0,0.00035341,6]
[385837304,1758058284108,-1324.78,0.00035341,6]
[385837305,1758058284117,-400.0,0.00035341,6]
[385837306,1758058284126,-1741.21,0.00035341,6]
[385837307,1758058284135,-400.0,0.00035341,6]
[385837308,1758058284145,-400.0,0.00035341,6]
[385837309,1758058284155,-387.87342853,0.00035341,6]
[385837310,1758058284165,-709.37,0.00035341,6]
[385837311,1758058284174,-400.0,0.00035341,6]
[385837312,1758058284183,-1543.15,0.00035341,6]
[385837313,1758058284193,-559.75,0.00035341,6]
[385837314,1758058284202,-537.74970473,0.00035341,6]
[385837315,1758058284211,-2637.68,0.00035341,6]
[385837316,1758058284222,-400.0,0.00035341,6]
[385837317,1758058284232,-635.22,0.00035341,6]
[385837318,1758058284241,-2060.24,0.00035341,6]
[385837319,1758058284251,-440.36,0.00035341,6]
[385837320,1758058284261,-400.0,0.00035341,6]
[385837321,1758058284270,-1367.84,0.00035341,6]
[385837322,1758058284280,-400.0,0.00035341,6]
[385837323,1758058284290,-1696.13,0.00035341,6]
[385837324,1758058284300,-537.85,0.00035341,6]
[385837325,1758058284310,-428.76,0.00035341,6]
[385837326,1758058284319,-806.85,0.00035341,6]
[385837327,1758058284329,-549.91,0.00035341,6]
[385837328,1758058284338,-2321.08,0.00035341,6]
[385837329,1758058284347,-777.31,0.00035341,6]
[385837330,1758058284357,-252.24795829,0.00035341,6]
[385837331,1758058284366,-614.12,0.00035341,6]
[385837332,1758058284375,-400.0,0.00035341,6]
[385837333,1758058284385,-400.0,0.00035341,6]
[385837334,1758058284394,-400.0,0.00035341,6]
[385837335,1758058284403,-400.0,0.00035341,6]
[385837336,1758058284413,-472.73,0.00035341,6]
[385837337,1758058284422,-400.0,0.00035341,6]
[385837338,1758058284431,-216.8547674,0.00035341,6]
[385837339,1758058284441,-1041.29,0.00035341,6]
[385837340,1758058284450,-400.0,0.00035341,6]
[385837341,1758058284459,-643.91,0.00035341,6]
[385837342,1758058284470,-2000.0,0.00035342,2]
[385837343,1758058284479,-2000.0,0.00035342,2]
[385837344,1758058284488,-2000.0,0.00035342,2]
[385837345,1758058284499,-2000.0,0.00035342,2]
[385837346,1758058284509,-2000.0,0.00035342,2]
[385837347,1758058284518,-2000.0,0.00035342,2]
[385837348,1758058284528,-2000.0,0.00035342,2]
[385837349,1758058284538,-2000.0,0.00035342,2]
[385837350,1758058284548,-2000.0,0.00035342,2]
[385837351,1758058284557,-2000.0,0.00035342,2]
[385837352,1758058284567,-2000.0,0.00035342,2]
[385837353,1758058284576,-461.14,0.00035342,6]
[385837354,1758058284587,-400.0,0.00035342,6]
[385837355,1758058284597,-530.21,0.00035342,6]
[385837356,1758058284607,-727.34,0.00035342,6]
[385837357,1758058284616,-531.6,0.00035342,6]
[385837358,1758058284626,-2312.57,0.00035342,6]
[385837359,1758058284636,-586.9,0.00035342,6]
[385837360,1758058284645,-627.93,0.00035342,6]
[385837361,1758058284655,-753.33,0.00035342,6]
[385837362,1758058284665,-400.0,0.00035342,6]
[385837363,1758058284675,-589.16,0.00035342,6]
[385837364,1758058284690,-609.41,0.00035342,6]
[385837365,1758058284701,-510.36,0.00035342,6]
[385837366,1758058284711,-684.2,0.00035342,6]
[385837367,1758058284721,-511.86,0.00035342,6]
[385837368,1758058284730,-2593.28,0.00035342,6]
[385837369,1758058284741,-764.41,0.00035342,6]
[385837370,1758058284753,-409.5,0.00035342,6]
[385837371,1758058284763,-594.69,0.00035342,6]
[385837372,1758058284772,-400.0,0.00035342,6]
[385837373,1758058284782,-563.64,0.00035342,6]
[385837374,1758058284794,-918.03,0.00035342,6]
[385837375,1758058284804,-3040.54,0.00035342,6]
[385837376,1758058284815,-955.33,0.00035342,6]
[385837377,1758058284824,-659.68,0.00035342,6]
[385837378,1758058284833,-594.06,0.00035342,6]
[385837379,1758058284842,-585.22,0.00035342,6]
[385837380,1758058284851,-483.06,0.00035342,6]
[385837381,1758058284861,-153.0,0.00035342,2]
[385837382,1758058284872,-153.0,0.00035342,2]
[385837383,1758058284885,-153.0,0.00035342,2]
[385837384,1758058284894,-153.0,0.00035342,2]
[385837385,1758058284903,-153.0,0.00035342,2]
[385837386,1758058284913,-153.0,0.00035342,2]
[385837387,1758058284922,-153.0,0.00035342,2]
[385837388,1758058284931,-153.0,0.00035342,2]
[385837389,1758058284941,-153.0,0.00035342,2]
[385837390,1758058284950,-153.0,0.00035342,2]
[385837391,1758058284959,-153.0,0.00035342,2]
[385837392,1758058284969,-153.0,0.00035342,2]
[385837393,1758058284978,-153.0,0.00035342,2]
[385837394,1758058284988,-153.0,0.00035342,2]
[385837395,1758058284997,-153.0,0.00035342,2]
[385837396,1758058285007,-153.0,0.00035342,2]
[385837397,1758058285016,-153.0,0.00035342,2]
[385837398,1758058285025,-153.0,0.00035342,2]
[385837399,1758058285034,-153.0,0.00035342,2]
[385837400,1758058285043,-153.0,0.00035342,2]
[385837401,1758058285052,-153.0,0.00035342,2]
[385837402,1758058285062,-153.0,0.00035342,2]
[385837403,1758058285071,-153.0,0.00035342,2]
[385837404,1758058285081,-153.0,0.00035342,2]
[385837405,1758058285090,-153.0,0.00035342,2]
[385837406,1758058285101,-153.0,0.00035342,2]
[385837407,1758058285110,-153.0,0.00035342,2]
[385837408,1758058285119,-153.0,0.00035342,2]
[385837409,1758058285132,-153.0,0.00035342,2]
[385837410,1758058285141,-153.0,0.00035342,2]
[385837411,1758058285150,-153.0,0.00035342,2]
[385837412,1758058285161,-153.0,0.00035342,2]
[385837413,1758058285171,-153.0,0.00035342,2]
[385837414,1758058285183,-153.0,0.00035342,2]
[385837415,1758058285192,-153.0,0.00035342,2]
[385837416,1758058285203,-153.0,0.00035342,2]
[385837417,1758058285214,-153.0,0.00035342,2]
[385837418,1758058285223,-153.0,0.00035342,2]
[385837419,1758058285232,-153.0,0.00035342,2]
[385837420,1758058285243,-153.0,0.00035342,2]
[385837421,1758058285253,-153.0,0.00035342,2]
[385837422,1758058285262,-153.0,0.00035342,2]
[385837423,1758058285271,-153.0,0.00035342,2]
[385837424,1758058285280,-153.0,0.00035342,2]
[385837425,1758058285289,-153.0,0.00035342,2]
[385837426,1758058285298,-153.0,0.00035342,2]
[385837427,1758058285307,-153.0,0.00035342,2]
[385837428,1758058285316,-153.0,0.00035342,2]
[385837429,1758058285326,-153.0,0.00035342,2]
[385837430,1758058285335,-153.0,0.00035342,2]
[385837431,1758058285344,-153.0,0.00035342,2]
[385837432,1758058285354,-153.0,0.00035342,2]
[385837433,1758058285363,-153.0,0.00035342,2]
[385837434,1758058285372,-153.0,0.00035342,2]
[385837435,1758058285381,-153.0,0.00035342,2]
[385837436,1758058285390,-153.0,0.00035342,2]
[385837437,1758058285399,-153.0,0.00035342,2]
[385837438,1758058285408,-153.0,0.00035342,2]
[385837439,1758058285418,-153.0,0.00035342,2]
[385837440,1758058285426,-153.0,0.00035342,2]
[385837441,1758058285436,-153.0,0.00035342,2]
[385837442,1758058285445,-153.0,0.00035342,2]
[385837443,1758058285455,-153.0,0.00035342,2]
[385837444,1758058285465,-153.0,0.00035342,2]
[385837445,1758058285474,-153.0,0.00035342,2]
[385837446,1758058285483,-153.0,0.00035342,2]
[385837447,1758058285496,-153.0,0.00035342,2]
[385837448,1758058285508,-153.0,0.00035342,2]
[385837449,1758058285518,-153.0,0.00035342,2]
[385837450,1758058285527,-153.0,0.00035342,2]
[385837451,1758058285537,-153.0,0.00035342,2]
[385837452,1758058285546,-153.0,0.00035342,2]
[385837453,1758058285555,-153.0,0.00035342,2]
[385837454,1758058285564,-153.0,0.00035342,2]
[385837455,1758058285573,-153.0,0.00035342,2]
[385837456,1758058285582,-153.0,0.00035342,2]
[385837457,1758058285592,-153.0,0.00035342,2]
[385837458,1758058285601,-153.0,0.00035342,2]
[385837459,1758058285611,-153.0,0.00035342,2]
[385837460,1758058285620,-153.0,0.00035342,2]
[385837461,1758058285629,-153.0,0.00035342,2]
[385837462,1758058285639,-153.0,0.00035342,2]
[385837463,1758058285650,-153.0,0.00035342,2]
[385837464,1758058285660,-153.0,0.00035342,2]
[385837465,1758058285669,-153.0,0.00035342,2]
[385837466,1758058285678,-1000.0,0.00035347,7]
[385837467,1758058285687,-317.51,0.00035353,60]
[385837468,1758058285696,-5007.08603,0.00035361,30]
[385837469,1758058285705,-1000.0,0.00035362,7]
[385837470,1758058285714,-168.54,0.00035387,2]
[385837471,1758058285723,-439.88,0.00035403,6]
[385837472,1758058285733,-303.20583995,0.00035403,6]
[385837473,1758058285742,-595.63,0.00035403,6]
[385837474,1758058285752,-493.90280024,0.00035403,6]
[385837475,1758058285761,-461.84,0.00035403,6]
[385837476,1758058285771,-924.18,0.00035403,6]
[385837477,1758058285783,-400.0,0.00035403,6]
[385837478,1758058285793,-400.0,0.00035403,6]
[385837479,1758058285805,-779.04,0.00035403,6]
[385837480,1758058285815,-11748.77,0.00035403,6]
[385837481,1758058285825,-400.0,0.00035403,6]
[385837482,1758058285835,-846.77,0.00035403,6]
[385837483,1758058285846,-816.88,0.00035403,6]
[385837484,1758058285856,-417.79,0.00035403,6]
[385837485,1758058285867,-617.06,0.00035403,6]
[385837486,1758058285876,-956.08,0.00035403,6]
[385837487,1758058285890,-150.0,0.00035405,120]
[385837488,1758058285899,-500.0,0.00035411,7]
[385837489,1758058285909,-500.7,0.00035424,7]
[385837490,1758058285919,-1000.0,0.00035433,7]
[385837491,1758058285928,-317.51,0.00035453,60]
[385837492,1758058285940,-1000.0,0.00035459,7]
[385837493,1758058285950,-839.09243417,0.00035464,2]
[385837494,1758058285961,-150.0,0.00035469,120]
[385837495,1758058285971,-1245.00834907,0.000355,2]
[385837496,1758058285980,-500.0,0.00035516,7]
[385837497,1758058285990,-600.0,0.00035552,7]
[385837498,1758058285999,-317.51,0.00035553,60]
[385837499,1758058286010,-300.0,0.0003557,2]
[385837500,1758058286019,-400.0,0.0003557,2]
[385837501,1758058286030,-400.0,0.0003557,2]
[385837502,1758058286041,-400.0,0.0003557,2]
[385837503,1758058286052,-400.0,0.0003557,2]
[385837504,1758058286063,-400.0,0.0003557,2]
[385837505,1758058286073,-700.0,0.0003557,2]
[385837506,1758058286082,-400.0,0.00035577,6]
[385837507,1758058286091,-408.95,0.00035577,6]
[385837508,1758058286101,-1275.83,0.00035577,6]
[385837509,1758058286112,-443.33623047,0.00035577,6]
[385837510,1758058286122,-467.76,0.00035577,6]
[385837511,1758058286131,-833.72,0.00035577,6]
[385837512,1758058286141,-400.0,0.00035577,6]
[385837513,1758058286150,-529.33,0.00035577,6]
[385837514,1758058286160,-935.51,0.00035577,6]
[385837515,1758058286170,-900.0,0.00035578,7]
[385837516,1758058286179,-500.0,0.00035599,7]
[385837517,1758058286188,-2000.0,0.00035599,2]
[385837518,1758058286198,-151.0,0.000356,120]
[385837519,1758058286207,-500.0,0.00035601,7]
[385837520,1758058286216,-200.0,0.00035602,2]
[385837521,1758058286226,-300.0,0.00035602,2]
[385837522,1758058286235,-150.0,0.00035607,120]
[385837523,1758058286244,-281.57711558,0.0003561,120]
[385837524,1758058286314,-885.22,0.00035614,6]
[385837525,1758058286323,-882.33,0.00035614,6]
[385837526,1758058286332,-400.0,0.00035615,6]
[385837527,1758058286341,-1030.84,0.00035615,6]
[385837528,1758058286351,-400.0,0.00035615,6]
[385837529,1758058286360,-1390.25,0.00035615,6]
[385837530,1758058286370,-893.45,0.00035615,6]
[385837531,1758058286378,-846.78,0.00035615,6]
[385837532,1758058286387,-400.0,0.00035615,6]
[385837533,1758058286397,-400.0,0.00035615,120]
[385837534,1758058286406,-463.17,0.00035615,6]
[385837535,1758058286416,-400.0,0.00035615,6]
[385837536,1758058286425,-400.0,0.00035615,6]
[385837537,1758058286436,-400.0,0.00035615,6]
[385837538,1758058286446,-405.15,0.00035615,6]
[385837539,1758058286457,-544.6,0.00035615,6]
[385837540,1758058286467,-579.99,0.00035615,6]
[385837541,1758058286476,-400.0,0.00035615,6]
[385837542,1758058286485,-1324.78,0.00035615,6]
[385837543,1758058286494,-400.0,0.00035615,6]
[385837544,1758058286503,-1741.21,0.00035615,6]
[385837545,1758058286512,-400.0,0.00035615,6]
[385837546,1758058286521,-400.0,0.00035615,6]
[385837547,1758058286531,-709.37,0.00035615,6]
[385837548,1758058286539,-400.0,0.00035615,6]
[385837549,1758058286549,-1543.15,0.00035615,6]
[385837550,1758058286560,-559.75,0.00035615,6]
[385837551,1758058286569,-2637.68,0.00035615,6]
[385837552,1758058286578,-400.0,0.00035615,6]
[385837553,1758058286586,-635.22,0.00035615,6]
[385837554,1758058286595,-2060.24,0.00035615,6]
[385837555,1758058286605,-440.36,0.00035615,6]
[385837556,1758058286614,-190.96500761,0.00035615,6]
[385837557,1758058286625,-1367.84,0.00035615,6]
[385837558,1758058286635,-400.0,0.00035615,6]
[385837559,1758058286645,-1696.13,0.00035615,6]
[385837560,1758058286656,-537.85,0.00035615,6]
[385837561,1758058286666,-428.76,0.00035615,6]
[385837562,1758058286676,-806.85,0.00035615,6]
[385837563,1758058286687,-549.91,0.00035615,6]
[385837564,1758058286698,-2321.08,0.00035615,6]
[385837565,1758058286707,-777.31,0.00035615,6]
[385837566,1758058286716,-614.12,0.00035615,6]
[385837567,1758058286725,-400.0,0.00035615,6]
[385837568,1758058286736,-400.0,0.00035615,6]
[385837569,1758058286748,-400.0,0.00035615,6]
[385837570,1758058286758,-400.0,0.00035615,6]
[385837571,1758058286770,-472.73,0.00035615,6]
[385837572,1758058286780,-400.0,0.00035615,6]
[385837573,1758058286789,-1041.29,0.00035615,6]
[385837574,1758058286800,-400.0,0.00035615,6]
[385837575,1758058286811,-643.91,0.00035615,6]
[385837576,1758058286821,-461.14,0.00035616,6]
[385837577,1758058286830,-519.88963222,0.00035616,6]
[385837578,1758058286841,-530.21,0.00035616,6]
[385837579,1758058286853,-727.34,0.00035616,6]
[385837580,1758058286864,-531.6,0.00035616,6]
[385837581,1758058286874,-2312.57,0.00035616,6]
[385837582,1758058286884,-586.9,0.00035616,6]
[385837583,1758058286894,-627.93,0.00035616,6]
[385837584,1758058286903,-753.33,0.00035616,6]
[385837585,1758058286911,-1054.00008823,0.00035616,5]
[385837586,1758058286922,-478.72427323,0.00035616,6]
[385837587,1758058286931,-589.16,0.00035616,6]
[385837588,1758058286940,-609.41,0.00035616,6]
[385837589,1758058286950,-510.36,0.00035616,6]
[385837590,1758058286959,-684.2,0.00035616,6]
[385837591,1758058286968,-511.86,0.00035616,6]
[385837592,1758058286977,-2593.28,0.00035616,6]
[385837593,1758058286987,-409.5,0.00035616,6]
[385837594,1758058286995,-764.41,0.00035616,6]
[385837595,1758058287005,-594.69,0.00035616,6]
[385837596,1758058287014,-400.0,0.00035616,6]
[385837597,1758058287023,-563.64,0.00035616,6]
[385837598,1758058287032,-918.03,0.00035616,6]
[385837599,1758058287042,-3040.54,0.00035616,6]
[385837600,1758058287051,-955.33,0.00035616,6]
[385837601,1758058287059,-659.68,0.00035616,6]
[385837602,1758058287069,-594.06,0.00035616,6]
[385837603,1758058287078,-585.22,0.00035616,6]
[385837604,1758058287087,-483.06,0.00035616,6]
[385837605,1758058287096,-953.73504829,0.00035616,5]
[385837606,1758058287105,-354.82126281,0.00035616,2]
[385837607,1758058287114,-169.12,0.00035616,2]
[385837608,1758058287123,-500.0,0.00035634,30]
[385837609,1758058287133,-317.51,0.00035653,60]
[385837610,1758058287142,-1000.0,0.00035661,7]
[385837611,1758058287152,-839.09243417,0.00035662,2]
[385837612,1758058287161,-439.88,0.00035677,6]
[385837613,1758058287171,-595.63,0.00035677,6]
[385837614,1758058287180,-461.84,0.00035677,6]
[385837615,1758058287189,-924.18,0.00035677,6]
[385837616,1758058287198,-400.0,0.00035677,6]
[385837617,1758058287207,-400.0,0.00035677,6]
[385837618,1758058287217,-779.04,0.00035677,6]
[385837619,1758058287226,-11748.77,0.00035677,6]
[385837620,1758058287235,-400.0,0.00035677,6]
[385837621,1758058287244,-846.77,0.00035677,6]
[385837622,1758058287254,-816.88,0.00035677,6]
[385837623,1758058287263,-417.79,0.00035677,6]
[385837624,1758058287272,-617.06,0.00035677,6]
[385837625,1758058287281,-1000.0,0.00035681,7]
[385837626,1758058287290,-262.69,0.00035692,60]
[385837627,1758058287299,-281.0,0.000357,2]
[385837628,1758058287309,-3581.74,0.000357,14]
[385837629,1758058287317,-1000.0,0.00035725,7]
[385837630,1758058287326,-600.0,0.00035735,7]
[385837631,1758058287336,-6572.9693856,0.00035751,2]
[385837632,1758058287344,-5000.0,0.00035751,2]
[385837633,1758058287353,-5000.0,0.00035751,2]
[385837634,1758058287362,-5000.0,0.00035751,2]
[385837635,1758058287372,-5000.0,0.00035751,2]
[385837636,1758058287380,-317.51,0.00035753,60]
[385837637,1758058287389,-177.11285504,0.00035759,2]
[385837638,1758058287398,-600.0,0.00035772,7]
[385837639,1758058287408,-500.0,0.00035774,7]
[385837640,1758058287417,-11809.71587121,0.000358,120]
[385837641,1758058287426,-1000.0,0.00035806,7]
[385837642,1758058287435,-1000.0,0.00035848,7]
[385837643,1758058287444,-8375.24189448,0.0003585,60]
[385837644,1758058287453,-400.0,0.00035851,6]
[385837645,1758058287463,-408.95,0.00035851,6]
[385837646,1758058287472,-1275.83,0.00035851,6]
[385837647,1758058287481,-467.76,0.00035851,6]
[385837648,1758058287490,-833.72,0.00035851,6]
[385837649,1758058287499,-400.0,0.00035851,6]
[385837650,1758058287508,-529.33,0.00035851,6]
[385837651,1758058287517,-935.51,0.00035851,6]
[385837652,1758058287526,-500.0,0.00035852,7]
[385837653,1758058287535,-1100.0,0.00035852,7]
[385837654,1758058287544,-317.51,0.00035853,60]
[385837655,1758058287553,-500.0,0.00035873,7]
[385837656,1758058287562,-1000.0,0.00035873,7]
[385837657,1758058287571,-703.0,0.0003588,120]
[385837658,1758058287580,-885.22,0.00035888,6]
[385837659,1758058287589,-882.33,0.00035888,6]
[385837660,1758058287599,-400.0,0.00035889,6]
[385837661,1758058287608,-1030.84,0.00035889,6]
[385837662,1758058287617,-400.0,0.00035889,6]
[385837663,1758058287626,-1390.25,0.00035889,6]
[385837664,1758058287635,-893.45,0.00035889,6]
[385837665,1758058287644,-846.78,0.00035889,6]
[385837666,1758058287654,-400.0,0.00035889,6]
[385837667,1758058287663,-400.0,0.00035889,120]
[385837668,1758058287672,-463.17,0.00035889,6]
[385837669,1758058287682,-400.0,0.00035889,6]
[385837670,1758058287691,-400.0,0.00035889,6]
[385837671,1758058287701,-400.0,0.00035889,6]
[385837672,1758058287710,-405.15,0.00035889,6]
[385837673,1758058287719,-544.6,0.00035889,6]
[385837674,1758058287728,-579.99,0.00035889,6]
[385837675,1758058287737,-173.56425804,0.00035889,6]
[385837676,1758058287746,-1324.78,0.00035889,6]
[385837677,1758058287755,-400.0,0.00035889,6]
[385837678,1758058287765,-1741.21,0.00035889,6]
[385837679,1758058287774,-400.0,0.00035889,6]
[385837680,1758058287783,-400.0,0.00035889,6]
[385837681,1758058287792,-709.37,0.00035889,6]
[385837682,1758058287801,-400.0,0.00035889,6]
[385837683,1758058287810,-1543.15,0.00035889,6]
[385837684,1758058287819,-559.75,0.00035889,6]
[385837685,1758058287827,-2637.68,0.00035889,6]
[385837686,1758058287836,-400.0,0.00035889,6]
[385837687,1758058287846,-635.22,0.00035889,6]
[385837688,1758058287855,-2060.24,0.00035889,6]
[385837689,1758058287864,-440.36,0.00035889,6]
[385837690,1758058287874,-1367.84,0.00035889,6]
[385837691,1758058287891,-400.0,0.00035889,6]
[385837692,1758058287901,-1696.13,0.00035889,6]
[385837693,1758058287910,-537.85,0.00035889,6]
[385837694,1758058287919,-428.76,0.00035889,6]
[385837695,1758058287930,-806.85,0.00035889,6]
[385837696,1758058287939,-549.91,0.00035889,6]
[385837697,1758058287949,-2321.08,0.00035889,6]
[385837698,1758058287959,-777.31,0.00035889,6]
[385837699,1758058287969,-614.12,0.00035889,6]
[385837700,1758058287979,-398.6034416,0.00035889,6]
[385837701,1758058287988,-400.0,0.00035889,6]
[385837702,1758058287998,-523.19804668,0.00035889,6]
[385837703,1758058288007,-472.73,0.00035889,6]
[385837704,1758058288017,-400.0,0.00035889,6]
[385837705,1758058288027,-1041.29,0.00035889,6]
[385837706,1758058288037,-400.0,0.00035889,6]
[385837707,1758058288046,-461.14,0.0003589,6]
[385837708,1758058288056,-530.21,0.0003589,6]
[385837709,1758058288066,-727.34,0.0003589,6]
[385837710,1758058288075,-531.6,0.0003589,6]
[385837711,1758058288085,-2312.57,0.0003589,6]
[385837712,1758058288095,-586.9,0.0003589,6]
[385837713,1758058288106,-627.93,0.0003589,6]
[385837714,1758058288116,-753.33,0.0003589,6]
[385837715,1758058288126,-589.16,0.0003589,6]
[385837716,1758058288135,-609.41,0.0003589,6]
[385837717,1758058288145,-510.36,0.0003589,6]
[385837718,1758058288155,-684.2,0.0003589,6]
[385837719,1758058288165,-511.86,0.0003589,6]
[385837720,1758058288175,-2593.28,0.0003589,6]
[385837721,1758058288185,-409.5,0.0003589,6]
[385837722,1758058288194,-764.41,0.0003589,6]
[385837723,1758058288203,-594.69,0.0003589,6]
[385837724,1758058288213,-400.0,0.0003589,6]
[385837725,1758058288223,-563.64,0.0003589,6]
[385837726,1758058288232,-918.03,0.0003589,6]
[385837727,1758058288242,-3040.54,0.0003589,6]
[385837728,1758058288251,-955.33,0.0003589,6]
[385837729,1758058288261,-659.68,0.0003589,6]
[385837730,1758058288271,-594.06,0.0003589,6]
[385837731,1758058288281,-585.22,0.0003589,6]
[385837732,1758058288290,-483.06,0.0003589,6]
[385837733,1758058288300,-744.96,0.000359,7]
[385837734,1758058288310,-600.0,0.000359,13]
[385837735,1758058288319,-4659.35,0.000359,7]
[385837736,1758058288329,-500.0,0.00035908,30]
[385837737,1758058288338,-369.38,0.00035929,7]
[385837738,1758058288348,-439.88,0.00035951,6]
[385837739,1758058288358,-595.63,0.00035951,6]
[385837740,1758058288367,-461.84,0.00035951,6]
[385837741,1758058288377,-924.18,0.00035951,6]
[385837742,1758058288387,-400.0,0.00035951,6]
[385837743,1758058288396,-400.0,0.00035951,6]
[385837744,1758058288405,-779.04,0.00035951,6]
[385837745,1758058288415,-11748.77,0.00035951,6]
[385837746,1758058288424,-354.75129202,0.00035951,6]
[385837747,1758058288434,-846.77,0.00035951,6]
[385837748,1758058288443,-816.88,0.00035951,6]
[385837749,1758058288452,-417.79,0.00035951,6]
[385837750,1758058288462,-617.06,0.00035951,6]
[385837751,1758058288471,-575.81340003,0.00035953,2]
[385837752,1758058288481,-600246.71292922,0.00035953,2]
[385837753,1758058288490,-317.51,0.00035953,60]
[385837754,1758058288500,-500.0,0.00035979,7]
[385837755,1758058288510,-5007.08603,0.00035997,30]